[Event "Fagernes Open 2021"]
[Site "Fagernes"]
[Date "2021.10.14"]
[Round "6.14"]
[White "Sekkingstad, Thomas"]
[Black "Grindbakken, Erik"]
[Result "0-1"]
[ECO "D31"]
[WhiteElo "1812"]
[BlackElo "1632"]
[Annotator "NA"]
[PlyCount "120"]
[EventDate "2021.10.10"]
[EventCountry "NOR"]
[SourceTitle "playchess.com"]
[Source "ChessBase"]
[SourceQuality "1"]
[TimeControl "40/5400+30:1800+30"]

1. d4 {[%emt 0:00:00]} e6 {[%emt 0:00:00]} 2. c4 {[%emt 0:00:00]} d5 {[%emt 0:00:00]} 3. Nc3 {[%emt 0:00:00]} c6 {[%emt 0:00:00]} 4. Nf3 {[%emt 0:00:00]} dxc4 {[%emt 0:00:00]} 5. a4 {[%emt 0:00:00]} Bb4 {[%emt 0:00:00]} 6. e3 {[%emt 0:00:00]} b5 {[%emt 0:00:00]} 7. Bd2 {[%emt 0:00:00]} a5 {[%emt 0:00:00]} 8. axb5 {[%emt 0:00:00]} Bxc3 {[%emt 0:00:00]} 9. Bxc3 {[%emt 0:00:00]} cxb5 {[%emt 0:00:00]} 10. b3 {[%emt 0:00:00]} Bb7 {[%emt 0:01:49]} 11. bxc4 {[%emt 0:00:00]} b4 {[%emt 0:00:13]} 12. Bb2 {[%emt 0:00:00]} Nf6 {[%emt 0:00:52]} 13. Bd3 {[%emt 0:01:43]} Nbd7 {[%emt 0:00:36]} 14. c5 {[%emt 0:00:38]} Bc6 {[%emt 0:01:07]} 15. Bc2 {[%emt 0:00:51]} O-O {[%emt 0:02:11]} 16. Ba4 {[%emt 0:00:40]} Qc7 {[%emt 0:04:14]} 17. O-O {[%emt 0:03:12]} Rfb8 {[%emt 0:03:09]} 18. Bxc6 {[%emt 0:30:29]} Qxc6 {[%emt 0:00:19]} 19. Qa4 {[%emt 0:00:19]} Rb5 {[%emt 0:06:03]} 20. Qb3 {[%emt 0:01:53]} Rb7 {[%emt 0:05:57]} 21. Ra4 {[%emt 0:00:23]} Ne4 {[%emt 0:06:10]} 22. Rfa1 {[%emt 0:11:13]} Rba7 {[%emt 0:00:32]} 23. Qc2 {[%emt 0:09:09]} h6 {[%emt 0:03:51]} 24. Ne1 {[%emt 0:04:58]} Ra6 {[%emt 0:10:50]} 25. Nd3 {[%emt 0:01:51]} Qc8 {[%emt 0:13:14]} 26. Qe2 {[%emt 0:02:01]} Nb8 {[%emt 0:06:25]} 27. Ne5 {[%emt 0:01:08]} Nc6 {[%emt 0:02:53]} 28. Nc4 {[%emt 0:00:17]} Qd8 {[%emt 0:03:05]} 29. Nb6 {[%emt 0:00:54]} R8a7 {[%emt 0:00:37]} 30. Qf3 {[%emt 0:00:56]} f5 {[%emt 0:01:11]} 31. Qe2 {[%emt 0:00:12]} Nf6 {[%emt 0:01:04]} 32. Qb5 {[%emt 0:00:41]} Qc7 {[%emt 0:02:42]} 33. Qc4 {[%emt 0:02:25]} Qf7 {[%emt 0:02:17]} 34. Bc1 {[%emt 0:02:36]} Nd5 {[%emt 0:00:58]} 35. Nc8 {[%emt 0:02:21]} Ra8 {[%emt 0:00:16]} 36. Nd6 {[%emt 0:00:11]} Qf6 {[%emt 0:02:09]} 37. Bd2 {[%emt 0:00:54]} g5 {[%emt 0:00:44]} 38. f3 {[%emt 0:01:07]} Kh7 {[%emt 0:03:37]} 39. e4 {[%emt 0:00:54]} Nc7 {[%emt 0:03:14]} 40. Be3 {[%emt 0:00:26]} f4 {[%emt 0:11:30]} 41. Bf2 {[%emt 0:30:29]} h5 {[%emt 0:33:43]} 42. d5 {[%emt 0:01:37]} exd5 {[%emt 0:02:49]} 43. exd5 {[%emt 0:00:08]} Ne5 {[%emt 0:00:13]} 44. Qe4+ {[%emt 0:01:20]} Ng6 {[%emt 0:00:00]} 45. Bd4 {[%emt 0:00:00]} Qe7 {[%emt 0:00:00]} 46. Nf5 {[%emt 0:00:00]} Qd7 {[%emt 0:00:00]} 47. d6 {[%emt 0:00:00]} Re8 {[%emt 0:00:00]} 48. Ne7 {[%emt 0:00:00]} Rxe7 {[%emt 0:00:00]} 49. dxe7 {[%emt 0:00:00]} Re6 {[%emt 0:00:00]} 50. Qd3 {[%emt 0:00:00]} Nb5 {[%emt 0:00:00]} 51. c6 {[%emt 0:00:00]} Qxd4+ {[%emt 0:00:00]} 52. Qxd4 {[%emt 0:00:00]} Nxd4 {[%emt 0:00:00]} 53. c7 {[%emt 0:00:00]} Nxe7 {[%emt 0:00:00]} 54. Rd1 {[%emt 0:00:00]} Rd6 {[%emt 0:00:00]} 55. Kf1 {[%emt 0:00:00]} Nb5 {[%emt 0:00:00]} 56. Rxd6 {[%emt 0:00:00]} Nxd6 {[%emt 0:00:00]} 57. Rxa5 {[%emt 0:00:00]} b3 {[%emt 0:00:00]} 58. Ra3 {[%emt 0:00:00]} Nc4 {[%emt 0:00:00]} 59. Ra7 {[%emt 0:00:00]} Nc8 {[%emt 0:00:00]} 60. Rb7 {[%emt 0:00:00]} N4b6 {[%emt 0:00:00]} 0-1

[Event "Fagernes Open 2021"]
[Site "Fagernes"]
[Date "2021.10.14"]
[Round "6.15"]
[White "Wibe, Per H."]
[Black "Eriksen, Olai Dyrhaug"]
[Result "0-1"]
[ECO "B27"]
[WhiteElo "1755"]
[BlackElo "1809"]
[Annotator "NA"]
[PlyCount "120"]
[EventDate "2021.10.10"]
[EventCountry "NOR"]
[SourceTitle "playchess.com"]
[Source "ChessBase"]
[SourceQuality "1"]
[TimeControl "40/5400+30:1800+30"]

1. e4 {[%emt 0:00:00]} c6 {[%emt 0:00:00]} 2. c4 {[%emt 0:00:00]} d5 {[%emt 0:00:00]} 3. cxd5 {[%emt 0:00:00]} cxd5 {[%emt 0:00:00]} 4. exd5 {[%emt 0:00:00]} Nf6 {[%emt 0:00:00]} 5. Nc3 {[%emt 0:00:00]} g6 {[%emt 0:00:00]} 6. Nf3 {[%emt 0:00:00]} Bg7 {[%emt 0:00:00]} 7. Bb5+ {[%emt 0:04:04]} Nbd7 {[%emt 0:00:15]} 8. d4 {[%emt 0:05:46]} O-O {[%emt 0:01:02]} 9. O-O {[%emt 0:01:22]} Nb6 {[%emt 0:01:29]} 10. Re1 {[%emt 0:02:50]} a6 {[%emt 0:08:43]} 11. Bf1 {[%emt 0:04:43]} Nbxd5 {[%emt 0:03:42]} 12. Ne5 {[%emt 0:02:25]} Nxc3 {[%emt 0:10:16]} 13. bxc3 {[%emt 0:00:38]} Nd7 {[%emt 0:02:08]} 14. Ng4 {[%emt 0:09:27]} h5 {[%emt 0:05:28]} 15. Nh6+ {[%emt 0:18:53]} Kh7 {[%emt 0:00:23]} 16. Nf5 {[%emt 0:01:25]} gxf5 {[%emt 0:12:23]} 17. Qxh5+ {[%emt 0:00:24]} Kg8 {[%emt 0:00:19]} 18. Qxf5 {[%emt 0:05:54]} Nf6 {[%emt 0:07:28]} 19. Qg5 {[%emt 0:01:28]} Nh7 {[%emt 0:07:30]} 20. Qg3 {[%emt 0:04:08]} Bf5 {[%emt 0:04:45]} 21. Bc4 {[%emt 0:05:32]} Qd6 {[%emt 0:05:01]} 22. Bf4 {[%emt 0:05:07]} Qg6 {[%emt 0:01:11]} 23. Bd5 {[%emt 0:05:19]} Rac8 {[%emt 0:07:36]} 24. Rac1 {[%emt 0:03:01]} Qxg3 {[%emt 0:07:03]} 25. hxg3 {[%emt 0:00:56]} e6 {[%emt 0:02:11]} 26. Bxb7 {[%emt 0:00:26]} Rc4 {[%emt 0:00:06]} 27. Bd6 {[%emt 0:03:23]} Rd8 {[%emt 0:04:53]} 28. Bc5 {[%emt 0:00:28]} Ra4 {[%emt 0:01:14]} 29. a3 {[%emt 0:01:29]} Bf8 {[%emt 0:02:32]} 30. Bb4 {[%emt 0:01:48]} Bxb4 {[%emt 0:00:28]} 31. axb4 {[%emt 0:00:12]} Rb8 {[%emt 0:01:11]} 32. Bc6 {[%emt 0:00:28]} Ra3 {[%emt 0:00:38]} 33. d5 {[%emt 0:01:48]} Rc8 {[%emt 0:01:42]} 34. c4 {[%emt 0:04:20]} Nf6 {[%emt 0:03:37]} 35. f3 {[%emt 0:00:46]} Rb3 {[%emt 0:01:29]} 36. b5 {[%emt 0:00:18]} axb5 {[%emt 0:00:32]} 37. cxb5 {[%emt 0:01:03]} Nxd5 {[%emt 0:00:42]} 38. Rcd1 {[%emt 0:02:52]} Nc3 {[%emt 0:00:33]} 39. Rd4 {[%emt 0:01:05]} Nxb5 {[%emt 0:00:29]} 40. Bxb5 {[%emt 0:00:44]} Rxb5 {[%emt 0:00:06]} 41. g4 {[%emt 0:00:00]} Bg6 {[%emt 0:00:00]} 42. f4 {[%emt 0:00:00]} Rc2 {[%emt 0:00:00]} 43. Re3 {[%emt 0:00:00]} Rbb2 {[%emt 0:02:15]} 44. Rg3 {[%emt 0:01:42]} Rc1+ {[%emt 0:00:09]} 45. Kh2 {[%emt 0:00:47]} Rbb1 {[%emt 0:00:33]} 46. Rf3 {[%emt 0:00:19]} Rf1 {[%emt 0:02:18]} 47. Rxf1 {[%emt 0:01:51]} Rxf1 {[%emt 0:00:06]} 48. Kg3 {[%emt 0:02:14]} Kg7 {[%emt 0:00:44]} 49. g5 {[%emt 0:00:51]} Bf5 {[%emt 0:03:20]} 50. Kh4 {[%emt 0:02:05]} Kg6 {[%emt 0:00:30]} 51. Kg3 {[%emt 0:02:14]} Ra1 {[%emt 0:02:42]} 52. Kh4 {[%emt 0:05:20]} Rh1+ {[%emt 0:01:43]} 53. Kg3 {[%emt 0:00:10]} Kh5 {[%emt 0:04:47]} 54. Rd8 {[%emt 0:01:38]} Rb1 {[%emt 0:00:13]} 55. Rh8+ {[%emt 0:04:19]} Kg6 {[%emt 0:00:05]} 56. Rd8 {[%emt 0:01:10]} Rb3+ {[%emt 0:00:28]} 57. Kh2 {[%emt 0:00:28]} Kh5 {[%emt 0:00:38]} 58. Rd2 {[%emt 0:02:40]} Kg4 {[%emt 0:00:17]} 59. Rf2 {[%emt 0:00:37]} Be4 {[%emt 0:00:28]} 60. Kg1 {[%emt 0:00:49]} Kg3 {[%emt 0:01:02]} 0-1

[Event "Fagernes Open 2021"]
[Site "Fagernes"]
[Date "2021.10.14"]
[Round "6.16"]
[White "Rynning, Rune Kleiven"]
[Black "Lystad, Maximilian L"]
[Result "0-1"]
[ECO "C15"]
[WhiteElo "1721"]
[BlackElo "1767"]
[Annotator "NA"]
[PlyCount "58"]
[EventDate "2021.10.10"]
[EventCountry "NOR"]
[SourceTitle "playchess.com"]
[Source "ChessBase"]
[SourceQuality "1"]
[TimeControl "40/5400+30:1800+30"]

1. e4 {[%emt 0:00:00]} e6 {[%emt 0:00:00]} 2. d4 {[%emt 0:00:00]} d5 {[%emt 0:00:00]} 3. Nc3 {[%emt 0:00:00]} Bb4 {[%emt 0:00:00]} 4. Nge2 {[%emt 0:00:00]} Nc6 {[%emt 0:00:00]} 5. a3 {[%emt 0:00:00]} Ba5 {[%emt 0:00:00]} 6. b4 {[%emt 0:00:00]} Bb6 {[%emt 0:00:00]} 7. e5 {[%emt 0:00:00]} f6 {[%emt 0:00:44]} 8. f4 {[%emt 0:00:00]} fxe5 {[%emt 0:00:20]} 9. fxe5 {[%emt 0:00:00]} Nxd4 {[%emt 0:03:25]} 10. h4 {[%emt 0:04:47]} Nxe2 {[%emt 0:02:26]} 11. Bxe2 {[%emt 0:02:49]} Ne7 {[%emt 0:03:34]} 12. Bg5 {[%emt 0:01:34]} O-O {[%emt 0:00:35]} 13. Qd2 {[%emt 0:06:13]} Bf2+ {[%emt 0:14:21]} 14. Kd1 {[%emt 0:00:08]} Qe8 {[%emt 0:00:57]} 15. h5 {[%emt 0:06:26]} h6 {[%emt 0:10:59]} 16. Bf4 {[%emt 0:39:04]} d4 {[%emt 0:19:14]} 17. Ne4 {[%emt 0:05:01]} Nd5 {[%emt 0:00:51]} 18. Nf6+ {[%emt 0:15:58]} gxf6 {[%emt 0:15:20]} 19. Bxh6 {[%emt 0:00:09]} Be3 {[%emt 0:00:28]} 20. Bxe3 {[%emt 0:00:08]} Nxe3+ {[%emt 0:00:06]} 21. Kc1 {[%emt 0:00:25]} fxe5 {[%emt 0:00:45]} 22. c3 {[%emt 0:06:02]} Qc6 {[%emt 0:03:18]} 23. c4 {[%emt 0:01:05]} Rf2 {[%emt 0:04:06]} 24. Qd3 {[%emt 0:03:23]} Qxg2 {[%emt 0:05:36]} 25. Kd2 {[%emt 0:00:18]} Rxe2+ {[%emt 0:00:33]} 26. Qxe2 {[%emt 0:00:11]} Nxc4+ {[%emt 0:00:05]} 27. Kd3 {[%emt 0:00:49]} Qg3+ {[%emt 0:04:07]} 28. Kc2 {[%emt 0:02:06]} Qc3+ {[%emt 0:00:17]} 29. Kb1 {[%emt 0:00:21]} Nd2+ {[%emt 0:00:17]} 0-1

[Event "Fagernes Open 2021"]
[Site "Fagernes"]
[Date "2021.10.15"]
[Round "7.1"]
[White "Krivenko, Dion"]
[Black "Dahl, Torbjorn"]
[Result "1-0"]
[ECO "C00"]
[WhiteElo "2045"]
[BlackElo "1876"]
[Annotator "NA"]
[PlyCount "113"]
[EventDate "2021.10.10"]
[EventCountry "NOR"]
[SourceTitle "playchess.com"]
[Source "ChessBase"]
[SourceQuality "1"]
[TimeControl "40/5400+30:1800+30"]

1. e4 {[%emt 0:00:00]} e6 {[%emt 0:00:00]} 2. b3 {[%emt 0:00:00]} d5 {[%emt 0:00:00]} 3. Bb2 {[%emt 0:00:00]} dxe4 {[%emt 0:00:00]} 4. Nc3 {[%emt 0:00:00]} Nf6 {[%emt 0:00:00]} 5. Qe2 {[%emt 0:00:00]} Bb4 {[%emt 0:00:00]} 6. O-O-O {[%emt 0:00:00]} Qe7 {[%emt 0:00:00] The main line 6...Qe7 scores better than 6...Bxc3.} 7. Nxe4 {[%emt 0:00:00]} Ba3 {[%emt 0:00:00]} 8. Nxf6+ {[%emt 0:00:00]} Qxf6 {[%emt 0:00:18]} 9. d4 {[%emt 0:00:00]} Bxb2+ {[%emt 0:00:00]} 10. Kxb2 {[%emt 0:00:00]} O-O {[%emt 0:01:54]} 11. Nf3 {[%emt 0:00:00]} Nc6 {[%emt 0:04:01] [#]} 12. Ne5 $146 {[%emt 0:00:00]} ({Predecessor:} 12. Qe4 a5 13. Bd3 g6 14. h4 Rd8 15. c3 a4 16. h5 axb3 17. axb3 Qe7 18. Ra1 Rxa1 19. Rxa1 {1-0 (47) Zawadzka,J (2403)-Sedina,E (2294) Chess.com INT 2021}) 12... a5 {[%emt 0:05:17]} 13. Nxc6 {[%emt 0:12:07]} bxc6 {[%emt 0:00:09]} 14. Qe5 {[%emt 0:00:18]} Qe7 {[%emt 0:15:04]} 15. a4 {[%emt 0:02:37]} Qd6 {[%emt 0:00:34]} 16. h4 {[%emt 0:06:30]} f6 {[%emt 0:09:54]} 17. Qe4 {[%emt 0:05:06]} Ba6 {[%emt 0:12:57]} 18. Bd3 {[%emt 0:04:41]} Bxd3 {[%emt 0:08:41]} 19. Rxd3 {[%emt 0:00:09]} Qd5 {[%emt 0:04:23]} 20. Re1 $16 {[%emt 0:01:44]} Rfe8 {[%emt 0:03:15]} 21. Rc3 {[%emt 0:08:54]} Rad8 {[%emt 0:10:34]} 22. Qxd5 {[%emt 0:00:12]} Rxd5 {[%emt 0:03:38]} 23. Rxc6 {[%emt 0:03:08]} Rxd4 {[%emt 0:00:53]} 24. Rexe6 {[%emt 0:01:10]} Rxe6 {[%emt 0:10:26]} 25. Rxe6 {[%emt 0:00:08]} Rxh4 {[%emt 0:00:07]} 26. Ra6 {[%emt 0:01:34]} Rh5 {[%emt 0:02:12]} 27. Rc6 {[%emt 0:00:06]} Rh2 {[%emt 0:00:30]} 28. Rxc7 {[%emt 0:03:15]} Rxg2 {[%emt 0:01:56]} 29. Rc5 {[%emt 0:00:01]} h5 {[%emt 0:06:24]} 30. b4 {[%emt 0:05:17]} Rg4 {[%emt 0:01:27]} 31. c4 {[%emt 0:07:11]} h4 {[%emt 0:00:44]} 32. bxa5 {[%emt 0:06:43]} h3 {[%emt 0:00:14]} 33. Rh5 {[%emt 0:03:46]} Rxc4 {[%emt 0:00:29]} 34. Kb3 {[%emt 0:01:37]} Rf4 {[%emt 0:00:20]} 35. a6 {[%emt 0:01:50]} Rd4 {[%emt 0:00:58]} 36. a7 {[%emt 0:03:38]} Rd8 {[%emt 0:00:06]} 37. Rb5 {[%emt 0:01:16]} h2 {[%emt 0:00:23]} 38. Rb8 {[%emt 0:00:43]} h1=Q {[%emt 0:00:31]} 39. Rxd8+ {[%emt 0:00:13]} Kh7 {[%emt 0:00:34]} 40. a8=Q {[%emt 0:00:09]} Qb1+ {[%emt 0:00:39]} 41. Kc3 {[%emt 0:32:07]} Qe1+ {[%emt 0:30:21]} 42. Rd2 {[%emt 0:03:21]} Qc1+ {[%emt 0:00:55]} 43. Kd3 {[%emt 0:03:09]} Qf1+ {[%emt 0:00:07]} 44. Kc3 {[%emt 0:05:29]} Qc1+ {[%emt 0:00:34]} 45. Rc2 {[%emt 0:02:32]} Qa1+ {[%emt 0:00:21]} 46. Kd2 {[%emt 0:01:53]} Qd4+ {[%emt 0:00:16]} 47. Ke2 {[%emt 0:00:19]} Qe5+ {[%emt 0:00:00]} 48. Kf1 {[%emt 0:02:26]} Qa1+ {[%emt 0:00:00]} 49. Kg2 {[%emt 0:00:00]} Qd4 {[%emt 0:00:00]} 50. Qf3 {[%emt 0:00:00]} Qe5 {[%emt 0:00:00]} 51. Rc4 {[%emt 0:00:00]} Qg5+ {[%emt 0:00:00]} 52. Qg4 {[%emt 0:00:00]} Qa5 {[%emt 0:00:00]} 53. Qe4+ {[%emt 0:00:00]} Kh6 {[%emt 0:00:00]} 54. Qh4+ {[%emt 0:00:00]} Kg6 {[%emt 0:00:00]} 55. Qg3+ {[%emt 0:00:00]} Kh7 {[%emt 0:00:00]} 56. Rh4+ {[%emt 0:00:00]} Kg8 {[%emt 0:00:00]} 57. Qb3+ {[%emt 0:00:00]} 1-0

[Event "Fagernes Open 2021"]
[Site "Fagernes"]
[Date "2021.10.15"]
[Round "7.2"]
[White "Kittilsen, Sigurd"]
[Black "Kreken, Eivind Grunt"]
[Result "0-1"]
[ECO "B32"]
[WhiteElo "1881"]
[BlackElo "1838"]
[Annotator "NA"]
[PlyCount "54"]
[EventDate "2021.10.10"]
[EventCountry "NOR"]
[SourceTitle "playchess.com"]
[Source "ChessBase"]
[SourceQuality "1"]
[TimeControl "40/5400+30:1800+30"]

1. e4 {[%emt 0:00:00]} c5 {[%emt 0:00:00]} 2. Nf3 {[%emt 0:00:00]} Nc6 {[%emt 0:00:00]} 3. d4 {[%emt 0:00:00]} cxd4 {[%emt 0:00:00]} 4. Nxd4 {[%emt 0:00:00]} e5 {[%emt 0:00:00]} 5. Nb5 {[%emt 0:00:00]} d6 {[%emt 0:00:00]} 6. N1c3 {[%emt 0:00:00]} a6 {[%emt 0:00:00]} 7. Na3 {[%emt 0:00:00]} Be7 {[%emt 0:00:00]} 8. Nc4 {[%emt 0:00:00] 8.Nc4 is better than 8.Nd5.} b5 {[%emt 0:00:00]} 9. Ne3 {[%emt 0:00:00]} Nf6 {[%emt 0:00:00]} 10. Ned5 {[%emt 0:01:47]} O-O {[%emt 0:00:00]} 11. Be3 {[%emt 0:01:35]} Nxd5 {[%emt 0:00:00]} 12. Nxd5 {[%emt 0:01:13]} Bg5 {[%emt 0:00:00]} 13. Bxg5 {[%emt 0:14:20]} Qxg5 {[%emt 0:00:00] [#]} 14. h4 $146 {[%emt 0:00:29]} ({Predecessor:} 14. c3 Bb7 15. Ne3 Ne7 16. Bd3 Rad8 17. h4 Qf4 18. g3 Qf6 19. Qe2 d5 20. Ng4 {½-½ (28) Stanciu,A (1875)-Geiger,A (2205) Satu Mare 2019}) 14... Qd8 {[%emt 0:00:00]} 15. a4 {[%emt 0:02:05]} b4 {[%emt 0:07:20]} 16. Qd2 {[%emt 0:05:42]} a5 {[%emt 0:05:40]} 17. O-O-O {[%emt 0:05:39]} Be6 {[%emt 0:04:56]} 18. Bc4 {[%emt 0:02:55]} Nd4 {[%emt 0:06:10]} 19. Qd3 {[%emt 0:12:07]} Rc8 {[%emt 0:04:16]} 20. c3 $19 {[%emt 0:05:34]} (20. f4 $15) 20... bxc3 {[%emt 0:03:15]} 21. bxc3 {[%emt 0:00:23]} Bxd5 {[%emt 0:00:46]} 22. Bxd5 {[%emt 0:13:11]} Rxc3+ {[%emt 0:01:10]} 23. Qxc3 {[%emt 0:01:02]} Ne2+ {[%emt 0:00:10]} 24. Kb2 {[%emt 0:00:15]} Nxc3 {[%emt 0:00:11]} 25. Kxc3 {[%emt 0:00:11]} Qb6 {[%emt 0:01:28]} 26. Rd2 {[%emt 0:03:01]} Rc8+ {[%emt 0:00:44]} 27. Kd3 {[%emt 0:00:00]} Qa6+ {[%emt 0:00:12]} 0-1

[Event "Fagernes Open 2021"]
[Site "Fagernes"]
[Date "2021.10.15"]
[Round "7.3"]
[White "Pedersen, Max Moe"]
[Black "Fiskaaen, Martin Holten"]
[Result "1-0"]
[ECO "D45"]
[WhiteElo "1837"]
[BlackElo "1829"]
[Annotator "NA"]
[PlyCount "127"]
[EventDate "2021.10.10"]
[EventCountry "NOR"]
[SourceTitle "playchess.com"]
[Source "ChessBase"]
[SourceQuality "1"]
[TimeControl "40/5400+30:1800+30"]

1. d4 {[%emt 0:00:00]} Nf6 {[%emt 0:00:00]} 2. c4 {[%emt 0:00:00]} e6 {[%emt 0:00:00]} 3. Nf3 {[%emt 0:00:00]} d5 {[%emt 0:00:00]} 4. Nc3 {[%emt 0:00:00]} c6 {[%emt 0:00:00]} 5. e3 {[%emt 0:00:00]} Nbd7 {[%emt 0:00:00]} 6. Be2 {[%emt 0:00:00]} Bd6 {[%emt 0:00:00]} 7. O-O {[%emt 0:00:00]} O-O {[%emt 0:00:00]} 8. b3 {[%emt 0:00:00]} b6 {[%emt 0:00:00]} 9. Bb2 {[%emt 0:00:00]} Bb7 {[%emt 0:00:00]} 10. Bd3 {[%emt 0:00:00]} Re8 {[%emt 0:00:21]} 11. Re1 {[%emt 0:00:00]} Rc8 {[%emt 0:03:04]} 12. Rc1 {[%emt 0:00:00]} c5 {[%emt 0:12:23]} 13. cxd5 {[%emt 0:01:50]} exd5 {[%emt 0:01:25]} 14. Ne2 {[%emt 0:06:59]} Qe7 {[%emt 0:12:54]} 15. Ng3 {[%emt 0:03:25]} g6 {[%emt 0:02:13]} 16. Nd2 {[%emt 0:19:20]} h5 {[%emt 0:12:16]} 17. Nf3 {[%emt 0:23:12]} Ne4 {[%emt 0:05:22]} 18. Rc2 {[%emt 0:14:00]} h4 {[%emt 0:03:54]} 19. Nf1 {[%emt 0:00:27]} h3 {[%emt 0:11:24]} 20. g3 {[%emt 0:00:40]} Ndf6 {[%emt 0:02:49]} 21. Ne5 {[%emt 0:01:15]} Ng5 {[%emt 0:04:41]} 22. f4 {[%emt 0:01:57]} Nge4 {[%emt 0:01:19]} 23. Nd2 {[%emt 0:03:58]} Qe6 {[%emt 0:01:32]} 24. Be2 {[%emt 0:03:38]} cxd4 {[%emt 0:07:17]} 25. Nxe4 {[%emt 0:03:29]} Nxe4 {[%emt 0:03:27]} 26. Rxc8 {[%emt 0:01:27]} Rxc8 {[%emt 0:01:29]} 27. exd4 {[%emt 0:01:37]} f5 {[%emt 0:00:19]} 28. Qd3 {[%emt 0:05:00]} Bb4 {[%emt 0:05:14]} 29. Rc1 {[%emt 0:04:44]} Rxc1+ {[%emt 0:00:59]} 30. Bxc1 {[%emt 0:00:04]} Qc8 {[%emt 0:01:55]} 31. Bb2 {[%emt 0:00:55]} Kg7 {[%emt 0:02:12]} 32. a3 {[%emt 0:05:40]} Bd6 {[%emt 0:01:02]} 33. Bf3 {[%emt 0:01:16]} Ba6 {[%emt 0:01:21]} 34. Qd1 {[%emt 0:00:52]} Nc3 {[%emt 0:04:25]} 35. Qd2 {[%emt 0:00:42]} Nb1 {[%emt 0:00:54]} 36. Qd1 {[%emt 0:00:45]} Nc3 {[%emt 0:00:50]} 37. Qd2 {[%emt 0:00:14]} Ne4 {[%emt 0:00:27]} 38. Qd1 {[%emt 0:00:14]} Qc7 {[%emt 0:00:57]} 39. Bxe4 {[%emt 0:00:41]} fxe4 {[%emt 0:00:32]} 40. Qg4 {[%emt 0:01:16]} Bc8 {[%emt 0:00:23]} 41. Qxg6+ {[%emt 0:00:40]} Kf8 {[%emt 0:30:20]} 42. Qf6+ {[%emt 0:00:00]} Kg8 {[%emt 0:00:00]} 43. Qg6+ {[%emt 0:00:00]} Kf8 {[%emt 0:00:00]} 44. Qh6+ {[%emt 0:02:21]} Kg8 {[%emt 0:00:00]} 45. Qg5+ {[%emt 0:00:52]} Qg7 {[%emt 0:00:00]} 46. Ng6 {[%emt 0:05:11]} Kh7 {[%emt 0:00:00]} 47. Qd8 {[%emt 0:12:26]} Qxg6 {[%emt 0:00:00]} 48. Qxc8 {[%emt 0:00:11]} e3 {[%emt 0:00:00]} 49. Qxh3+ {[%emt 0:00:36]} Kg8 {[%emt 0:00:00]} 50. Qc8+ {[%emt 0:02:05]} Bf8 {[%emt 0:00:00]} 51. f5 {[%emt 0:01:07]} Qg4 {[%emt 0:04:53]} 52. Qe6+ {[%emt 0:00:47]} Kh7 {[%emt 0:00:40]} 53. Qg6+ {[%emt 0:02:08]} Qxg6 {[%emt 0:00:06]} 54. fxg6+ {[%emt 0:00:06]} Kxg6 {[%emt 0:00:01]} 55. Kg2 {[%emt 0:00:20]} Kf5 {[%emt 0:00:25]} 56. Kf3 {[%emt 0:00:12]} Bh6 {[%emt 0:00:33]} 57. g4+ {[%emt 0:00:18]} Ke6 {[%emt 0:00:29]} 58. h4 {[%emt 0:00:11]} e2 {[%emt 0:00:36]} 59. Kxe2 {[%emt 0:00:07]} Bf4 {[%emt 0:00:07]} 60. Bc3 {[%emt 0:01:03]} a5 {[%emt 0:00:49]} 61. a4 {[%emt 0:00:12]} Kf6 {[%emt 0:01:05]} 62. Bd2 {[%emt 0:00:41]} Bg3 {[%emt 0:01:14]} 63. h5 {[%emt 0:00:17]} Bh4 {[%emt 0:00:09]} 64. Kf3 {[%emt 0:00:14]} 1-0

[Event "Fagernes Open 2021"]
[Site "Fagernes"]
[Date "2021.10.15"]
[Round "7.4"]
[White "Myagmarsuren, Evsuld"]
[Black "Fredriksen, Jan Gunnar"]
[Result "1-0"]
[ECO "B00"]
[WhiteElo "1650"]
[BlackElo "1835"]
[Annotator "NA"]
[PlyCount "41"]
[EventDate "2021.10.10"]
[EventCountry "NOR"]
[SourceTitle "playchess.com"]
[Source "ChessBase"]
[SourceQuality "1"]
[TimeControl "40/5400+30:1800+30"]

1. e4 {[%emt 0:00:00]} a6 {[%emt 0:01:40]} 2. d4 {[%emt 0:00:00]} b5 {[%emt 0:00:09]} 3. a3 {[%emt 0:00:00]} Bb7 {[%emt 0:00:09]} 4. Nc3 {[%emt 0:00:00]} e6 {[%emt 0:02:29]} 5. Bd3 {[%emt 0:00:00]} Nf6 {[%emt 0:00:24]} 6. Nf3 {[%emt 0:00:00]} c5 {[%emt 0:00:19]} 7. O-O {[%emt 0:00:00]} c4 {[%emt 0:00:36]} 8. Be2 {[%emt 0:00:00]} Nxe4 {[%emt 0:00:12]} 9. Nxe4 {[%emt 0:00:00]} Bxe4 {[%emt 0:00:07]} 10. Ng5 {[%emt 0:00:00]} Bg6 {[%emt 0:02:04]} 11. d5 {[%emt 0:07:15]} h6 {[%emt 0:01:39]} 12. Nh3 {[%emt 0:02:24]} exd5 {[%emt 0:08:32]} 13. Nf4 {[%emt 0:09:19]} Bh7 {[%emt 0:05:02]} 14. Qxd5 {[%emt 0:02:41]} Nc6 {[%emt 0:00:19]} 15. Bh5 {[%emt 0:02:04]} g6 {[%emt 0:00:47]} 16. Re1+ {[%emt 0:00:52]} Be7 {[%emt 0:00:41]} 17. Bg4 {[%emt 0:04:07]} f5 {[%emt 0:08:41]} 18. Nh5 {[%emt 0:01:28]} Bg8 {[%emt 0:07:22]} 19. Nf6+ {[%emt 0:00:09]} Kf8 {[%emt 0:00:19]} 20. Bxh6+ {[%emt 0:00:07]} Rxh6 {[%emt 0:00:25]} 21. Qxg8# {[%emt 0:00:06]} 1-0

[Event "Fagernes Open 2021"]
[Site "Fagernes"]
[Date "2021.10.15"]
[Round "7.5"]
[White "Strand, Amund Pihl"]
[Black "Dulman, Egmond-Gabriel"]
[Result "1-0"]
[ECO "A90"]
[WhiteElo "1712"]
[BlackElo "2065"]
[Annotator "NA"]
[PlyCount "73"]
[EventDate "2021.10.10"]
[EventCountry "NOR"]
[SourceTitle "playchess.com"]
[Source "ChessBase"]
[SourceQuality "1"]
[TimeControl "40/5400+30:1800+30"]

1. c4 {[%emt 0:00:00]} f5 {[%emt 0:00:58]} 2. Nc3 {[%emt 0:00:00]} Nf6 {[%emt 0:00:18]} 3. g3 {[%emt 0:00:00]} e6 {[%emt 0:00:34]} 4. Bg2 {[%emt 0:00:00]} d5 {[%emt 0:00:45]} 5. cxd5 {[%emt 0:00:00]} exd5 {[%emt 0:00:38]} 6. d4 {[%emt 0:00:00]} c6 {[%emt 0:02:51]} 7. Nf3 {[%emt 0:00:00]} Bd6 {[%emt 0:00:52]} 8. O-O {[%emt 0:01:08]} O-O {[%emt 0:00:39]} 9. Rb1 {[%emt 0:10:45]} Ne4 {[%emt 0:05:21]} 10. Qc2 {[%emt 0:01:50]} Be6 {[%emt 0:06:28]} 11. b4 {[%emt 0:05:39]} f4 {[%emt 0:08:07]} 12. Ne5 {[%emt 0:16:47]} Nxc3 {[%emt 0:02:24]} 13. Qxc3 {[%emt 0:00:09]} fxg3 {[%emt 0:00:28]} 14. hxg3 {[%emt 0:03:10]} a6 {[%emt 0:03:41]} 15. a4 {[%emt 0:05:56]} Nd7 {[%emt 0:02:16]} 16. Bf4 {[%emt 0:05:43]} Nxe5 {[%emt 0:01:56]} 17. dxe5 {[%emt 0:11:11]} Be7 {[%emt 0:00:28]} 18. Rfd1 {[%emt 0:01:49]} Qc8 {[%emt 0:03:54]} 19. e4 {[%emt 0:03:27]} dxe4 {[%emt 0:00:51]} 20. Bxe4 {[%emt 0:00:08]} Bf5 {[%emt 0:01:03]} 21. Qd3 {[%emt 0:01:53]} Bxe4 {[%emt 0:02:53]} 22. Qxe4 {[%emt 0:00:09]} Qe6 {[%emt 0:01:13]} 23. b5 $14 {[%emt 0:08:33]} axb5 {[%emt 0:07:36]} 24. axb5 {[%emt 0:00:14]} Rad8 {[%emt 0:09:39]} 25. Rdc1 {[%emt 0:04:05]} Qd5 {[%emt 0:07:58]} 26. Qxd5+ {[%emt 0:03:52]} Rxd5 {[%emt 0:00:43]} 27. bxc6 {[%emt 0:00:14]} bxc6 {[%emt 0:00:08]} 28. Rxc6 {[%emt 0:00:14]} g5 {[%emt 0:00:29]} 29. Rb7 {[%emt 0:01:43]} gxf4 {[%emt 0:02:43]} 30. Rxe7 {[%emt 0:00:17]} fxg3 {[%emt 0:00:34]} 31. fxg3 {[%emt 0:00:13]} Rf7 {[%emt 0:02:08]} 32. Rc8+ {[%emt 0:03:48]} Kg7 {[%emt 0:00:11]} 33. Ree8 {[%emt 0:01:04]} Rd2 {[%emt 0:05:55]} 34. Rg8+ {[%emt 0:04:11]} Kh6 {[%emt 0:00:13]} 35. Rc4 {[%emt 0:04:46]} Rf5 {[%emt 0:05:48]} 36. Rc6+ {[%emt 0:00:09]} Kh5 {[%emt 0:00:07]} 37. g4+ {[%emt 0:00:05]} 1-0